Cogmind - Beta 14 @@@ ROGUE MODE // 2024.11.24 @ 07:17:07 Player: Fangrelle Result: Destroyed by G-34 Mercenary with Small Laser Performance ------------- Evolutions (0) 0 Regions Visited (1) 200 Robots Destroyed (38) 190 Value Destroyed (694) 694 Prototype IDs (0) 0 Alien Tech Used (0) 0 Bonus (8) 8 TOTAL SCORE: 1092 Bonus ------- High Alert Combat Kills 8 Cogmind --------- Core Integrity 0/250 Matter 244/300 Energy 250/250 System Corruption 1% Temperature Cool (6) Movement Rolling (140) Ox4 Location -10/Materials Parts ------- > --- POWER (1) -------- Ion Engine > --- PROPULSION (2) --- Wheel Wheel > --- UTILITY (2) ------ Huge Storage Unit Improved Targeting Computer > --- WEAPON (2) ------- Heavy Assault Rifle Heavy Assault Rifle > --- INVENTORY (25) --- Ion Engine High-capacity Matter Pod (9) Visual Processing Unit Visual Processing Unit Sensor Array Signal Interpreter Signal Interpreter Seismic Detector Improved Targeting Computer Improved Targeting Computer Improved Targeting Computer Tractor Beam Heavy Assault Rifle Heavy Assault Rifle Grenade Launcher Datajack Mining Laser Peak State ------------ > --- POWER ------------ Ion Engine > --- PROPULSION ------- Light Treads Compact Wheel > --- UTILITY ---------- Huge Storage Unit Improved Targeting Computer > --- WEAPON ----------- Particle Gun Particle Gun > --- INVENTORY -------- Ion Engine Visual Processing Unit Visual Processing Unit Sensor Array Signal Interpreter Signal Interpreter Seismic Detector Improved Targeting Computer Improved Targeting Computer Improved Targeting Computer Tractor Beam Small Laser Particle Gun Particle Gun Grenade Launcher Mining Laser [Rating: 12] Favorites ----------- Power Ion Engine Engine Ion Engine Propulsion Light Treads Treads Light Treads Leg Aluminum Leg Wheel Compact Wheel Utility Huge Storage Unit Device Seismic Detector Storage Huge Storage Unit Processor Improved Targeting Computer Weapon Heavy Assault Rifle Energy Gun EM Pulse Gun Ballistic Gun Heavy Assault Rifle Launcher Grenade Launcher Build | -11 -10 ------- Run | Yrd Mat Slots Evolved . | . . Power . | . . Propulsion . | . . Utility . | . . Weapon . | . . Parts Attached 16 | 1 15 Power . | . . Engine . | . . Core . | . . Reactor . | . . Propulsion 5 | . 5 Treads 2 | . 2 Leg . | . . Wheel 3 | . 3 Hover . | . . Flight . | . . Utility 4 | 1 3 Device 2 | 1 1 Storage 1 | . 1 Processor 1 | . 1 Hackware . | . . Protection . | . . Artifact . | . . Weapon 7 | . 7 Energy Gun 3 | . 3 Energy Cannon . | . . Ballistic Gun 2 | . 2 Ballistic Cannon . | . . Launcher 2 | . 2 Special Weapon . | . . Impact Weapon . | . . Slashing Weapon . | . . Piercing Weapon . | . . Special Melee Weapon . | . . Unidentified Prototypes . | . . Parts Lost 5 | . 5 Power . | . . Propulsion 2 | . 2 Utility 1 | . 1 Weapon 2 | . 2 Highest Loss Streak 3 | . 3 To Critical Strikes . | . . Average Slot Usage (%) 82 | . 82 Engine 14 | . 14 Treads 9 | . 9 Wheel 1 | . 1 Device 4 | . 4 Storage 14 | . 14 Processor 9 | . 9 Energy Gun 9 | . 9 Ballistic Gun 18 | . 18 Peak Build Rating 12 | 7 12 Average Rating 9 | 6 9 On Entrance 6 | 6 7 Naked Turns . | . . Heaviest Build 91 | 14 91 Greatest Support 40 | 20 40 Greatest Overweight (x) 30 | . 30 Average Overweight (x) 7 | . 8 Largest Inventory Capacity 25 | 8 25 Average Capacity 24 | 8 24 Most Carried 20 | 8 20 Average Carried 16 | 6 16 Final Capacity 25 | 8 25 Final Carried 17 | 8 17 Class Distribution -------------------- 100% | Mutant Dominant Class ---------------- Mutant | -10/Materials Resources | -11 -10 ----------- Run | Yrd Mat Matter Collected 643 | 210 433 Remotely . | . . Salvage Created 1161 | 113 1048 Parts 75 | 6 69 Haulers Intercepted 2 | . 2 Recyclers Shooed 1 | . 1 Parts Field Recycled . | . . Retrieved Matter . | . . Parts Self-Destructed . | . . Prevented . | . . Kills | -11 -10 ------- Run | Yrd Mat Combat Hostiles Destroyed 23 | . 23 Guns 15 | . 15 AOE 8 | . 8 Classes Destroyed 9 | 2 7 Worker 3 | . 3 Builder 3 | . 3 Tunneler 1 | 1 . Hauler 2 | . 2 Recycler 3 | 1 2 Operator 1 | . 1 Watcher 2 | . 2 Swarmer 9 | . 9 Grunt 14 | . 14 Best Kill Streak 9 | 2 9 Combat Bots Only 6 | . 6 Max Kills in Single Turn 3 | 1 3 Gunslinging 1 | . 1 Exploded 3 | . 3 Melee . | . . Uniques/NPCs Destroyed . | . . Combat | -11 -10 -------- Run | Yrd Mat Hostile Shots Fired 122 | . 122 Missed 32 | . 32 Damage Taken 943 | . 943 Core 251 | . 251 Absorbed by Shields . | . . Core Remaining (%) 100 | 100 . Volleys Fired 83 | 8 75 Largest 2 | 2 2 Hottest 105 | 80 105 Shots Fired 162 | 16 146 Gun 156 | 16 140 Cannon . | . . Launcher 6 | . 6 Special . | . . Kinetic 88 | . 88 Thermal 30 | 8 22 Explosive 6 | . 6 Electromagnetic 38 | 8 30 Robot Hit Streak 9 | 3 9 Robot Miss Streak 3 | 2 3 Penetration Max . | . . Secondary Targets 2 | . 2 Max Gunslinging Chain 1 | . 1 Shots Hit Robots 98 | 8 90 Core Hits 51 | 3 48 Critical Kills . | . . Critical Parts Destroyed . | . . Critical Strikes 2 | . 2 Burn 1 | . 1 Corrupt 1 | . 1 Melee Attacks . | . . Impact . | . . Slashing . | . . Piercing . | . . Sneak Attacks . | . . Combat Hostiles . | . . Follow-up Attacks . | . . Damage Inflicted 1886 | 95 1791 Guns 1390 | 95 1295 Cannons . | . . Explosions 496 | . 496 Melee . | . . Ramming . | . . Kinetic 919 | . 919 Thermal 203 | 45 158 Explosive 496 | . 496 Electromagnetic 268 | 50 218 Impact . | . . Slashing . | . . Piercing . | . . Highest Corruption 1 | . 1 Average Corruption 1 | . 1 Corruption Purged . | . . Corruption Blocked . | . . Effects 10 | . 10 Message Errors 2 | . 2 Matter Fused 3 | . 3 Heat Flow Errors 1 | . 1 Energy Discharges 1 | . 1 Parts Rejected 1 | . 1 Data Loss (minor) 1 | . 1 Misfires 1 | . 1 Overload Shots . | . . Overflow Damage . | . . Projectiles . | . . Explosions . | . . Melee . | . . Knockbacks . | . . Impact . | . . Kinetic . | . . Secondary . | . . Self-Inflicted Damage 36 | . 36 Shots 3 | . 3 Rammed . | . . Targets Rammed . | . . Kicked . | . . Crushed . | . . Highest Temperature 333 | 144 333 Average Temperature 70 | 70 70 Received Heat Transfer 336 | . 336 Siege Activations . | . . Robots Corrupted . | . . Combat Hostiles . | . . Parts Fried . | . . Impact Corruptions . | . . Robots Melted . | . . Combat Hostiles . | . . Parts Melted 1 | . 1 Heat Transferred 521 | 100 421 Parts Sabotaged . | . . Parts Stolen . | . . Parts Stripped . | . . Power Chain Reactions . | . . Alert | -11 -10 ------- Run | Yrd Mat Peak Influence 421 | 10 421 Initial 6 | . 6 Average 192 | 6 195 Maximum Alert Level 2 | . 2 Low Security (%) 35 | 100 34 Level 1 63 | . 64 Level 2 . | . . Level 3 . | . . Level 4 . | . . Level 5 . | . . High Security . | . . Max Security . | . . Squads Dispatched 7 | . 7 Investigation 5 | . 5 Extermination . | . . Reinforcement 2 | . 2 Assault . | . . Garrison . | . . Intercept . | . . Searches Triggered . | . . Construction Impeded . | . . Haulers Reinforced . | . . Active Scanning Responses . | . . Cargo Convoy Interrupts . | . . Stealth | -11 -10 --------- Run | Yrd Mat Distress Signals 1 | . 1 Communications Jammed . | . . Distress Signals . | . . Times Spotted 37 | . 37 Peak Tracking Total 7 | . 7 Tactical Retreats . | . . Traps | -11 -10 ------- Run | Yrd Mat Traps Triggered 2 | . 2 Indirectly . | . . Trap Hack Attempts . | . . Triggered . | . . Disarmed . | . . Reprogrammed . | . . Reused . | . . Traps Extracted . | . . Installed . | . . Triggered . | . . Machines | -11 -10 ---------- Run | Yrd Mat Machines Disabled 2 | . 2 Max in Single Turn 1 | . 1 Machines Repaired . | . . Machines Dismantled . | . . Machines Sabotaged . | . . Overloaded Fab Kills . | . . Hacking | -11 -10 --------- Run | Yrd Mat Machines Accessed 6 | . 6 Terminals 4 | . 4 Fabricators . | . . Repair Stations . | . . Recycling Units 2 | . 2 Scanalyzers . | . . Garrison Access . | . . Total Hacks 16 | . 16 Successful 5 | . 5 Failed 11 | . 11 Catastrophic . | . . Database Lockouts . | . . Manual 13 | . 13 Terminals 11 | . 11 Fabricators . | . . Repair Stations . | . . Recycling Units 5 | . 5 Scanalyzers . | . . Garrison Access . | . . Terminal Hacks . | . . Fabricator Hacks . | . . Repair Station Hacks . | . . Recycling Unit Hacks 1 | . 1 Retrieve Components 1 | . 1 Scanalyzer . | . . Garrison Access Hacks . | . . Unauthorized Hacks 4 | . 4 Terminals 2 | . 2 Assimilate 1 | . 1 Botnet 1 | . 1 Fabricators . | . . Repair Stations . | . . Recycling Units 2 | . 2 Tunnel 2 | . 2 Scanalyzers . | . . Garrison Access . | . . Data Cores Recovered . | . . Used . | . . Hacking Detections 5 | . 5 Full Trace Events 1 | . 1 Feedback Events 1 | . 1 Corruption 1 | . 1 Feedback Blocked . | . . Robot Schematics Acquired . | . . Robots Built . | . . Authchips . | . . Time . | . . Total Robot Build Rating . | . . Part Schematics Acquired . | . . Parts Built . | . . Authchips . | . . Time . | . . Total Part Build Rating . | . . Parts Repaired . | . . Time . | . . Parts Recycled . | . . Recycled Matter . | . . Retrieved Matter . | . . Retrieved Components 9 | . 9 Parts Scanalyzed . | . . Part Schematics Acquired . | . . Parts Damaged . | . . Bothacking | -11 -10 ------------ Run | Yrd Mat Used RIF Installer . | . . Robots Hacked . | . . Non-combat . | . . Combat . | . . Robot Hacks Applied . | . . Relay Couplers Released . | . . Fabnet Peak Effective % . | . . Robots Rewired . | . . Allies Hacked . | . . Hacks Repelled . | . . Allies | -11 -10 -------- Run | Yrd Mat Total Allies . | . . Largest Group . | . . Highest-Rated Group . | . . Highest-Rated Ally . | . . Total Orders . | . . Ally Attacks . | . . Total Damage . | . . Kills . | . . Allies Corrupted . | . . Allies Melted . | . . Intel | -11 -10 ------- Run | Yrd Mat Robot Analysis Total . | . . Derelict Logs Recovered . | . . Drone Launches . | . . Drone Recoveries . | . . Exploration | -11 -10 ------------- Run | Yrd Mat Turns Passed 2987 | 50 2937 Spaces Moved 549 | 19 530 Core 103 | . 103 Treads 289 | . 289 Legs 19 | 19 . Wheels 138 | . 138 Hover . | . . Flight . | . . Fastest Speed 120 | 120 140 Average Speed 490 | 120 503 Slowest Speed 1550 | 120 1550 Overloaded Moves . | . . Propulsion Burnouts . | . . Robots Hopped . | . . Cave-ins Triggered . | . . Exploration Rate (%) 36 | 3 70 Regions Visited 1 Branch Regions . Pre-discovered Areas 2 | . 2 Known Exits Taken . | . . Unknown Exits Taken 1 | 1 . Scrap Searched . | . . Spaces Dug . | . . Terrain Destroyed 29 | . 29 Melee . | . . Projectile . | . . AOE 29 | . 29 Terrain Rammed . | . . Walls Destroyed . | . . Machines Disabled . | . . Actions | -11 -10 --------- Run | Yrd Mat Total 686 | 29 657 Wait 4 | . 4 Move 548 | 18 530 Hop . | . . Pick Up 23 | 2 21 Fast Attach 6 | 1 5 Attach 6 | . 6 Detach . | . . Swap 4 | . 4 Drop 12 | . 12 Fire 83 | 8 75 Melee . | . . Ram . | . . Kick . | . . Crush . | . . Escape Stasis . | . . Rewire . | . . Trap . | . . Miscellaneous . | . . Route ------- -11/Scrapyard -10/Materials (discovered 3 exits: [*Mat x3]) History --------- Turn | Location | Event 13 | -11/Scrapyard | Discovered new exit (range 2) 51 | -11/Scrapyard | Entered Materials 314 | -10/Materials | Build established: Mutant 999 | -10/Materials | Lost 3 parts (1n1u1w) 1058 | -10/Materials | Discovered new exit (range 8) 1166 | -10/Materials | Discovered new exit (range 14) 1186 | -10/Materials | Core integrity fell below 50% 1437 | -10/Materials | Discovered new exit (range 10) 2095 | -10/Materials | Core integrity fell below 20% 2988 | -10/Materials | Destroyed by G-34 Mercenary with Small Laser Last Messages --------------- 02936_ Acquired Wheel. 02961_ Connecting with Recycling Unit... >>Retrieve(Components) Retrieving 9 components... Particle Gun Particle Gun Sml. Laser Sml. Laser Sml. Laser Aluminum Leg Aluminum Leg Grenade Launcher Particle Gun >>Force(Tunnel) DISCOVERED[-1/Command] 02961_ ALERT: Suspicious activity at Recycling Unit M002. Dispatching Investigation squad. 02964_ Acquired Grenade Launcher. 02973_ UKIAK F4&5K7TY5BNR5K BC8LCR&AVCQ F/K 02983_ G-34 Mercenary destroyed. 02984_ K-01 Serf collects debris. Map ----- +----------------------------------------------------+ | ???# #?????????# # ######+ | | ???# #?????????#! # # | | ???# #?????????# # # | | ???# #??###########+### + | | ???# #??# # | | ???# #??# # | | ??#####+#####?# # | | ??# #?# ########## ######## | | ??# #?# #????????# #??????? | | ??# #?# #????????# #??????? | | ??# """ """ #?# #????????# #??????? | | ??# """ """ #?# #????????# #??????? | | ??# """ """ #?# #????????# #??##### | | ??# #?# #????????# #??# | | ??# !#?# #????????# #??# """ | | ??###########?# #????????# #??# """ | | ??????????????# #????????# #??# """ | | ??????????????#^^ #????????# #### """ | | ??????????????#^^ #????????# /%""" | | ???############ #????????# #### | | ???# ## ##???????# #??# % | | ???# """ ! # *%######### ######## | | ???# "Y"[ # ! % | | ???#[=[ [[ + T ! * | | ???# """=""" # k % | | ???# """[""" #@ ################### | | ???# """ """ ##%= ########???????????# | | ???# ##= #?# #???????????# | | ???############ gg#?# #???????????# | | ??????????????# #?# #???????????# | | ??????????????# ### #???????????# | | ??????#######?# + #???????????# | | ??????# #?# # #???????????# | | ??????# !!#?# % ######???????????# | | ??????# ![#?# #????????????????# | | #######"" #?# #????????????????# | | # #"Y #?# ####?????????????# | | # #"" #?# !##???????????? | | # " # #?# !#??????????? | | # """ #+#+##### !#?????????? | | # "" # !#?????????< ### | | # """ + !#???????? ??? | | # "" # !##?????????#???? | | # """ ###### < ##+#+#####?????????????? | | # """ #????# # #?????????????? | | # """ #????##### #?????????????? | | # " #????????#""" #?????????????? | | # #????????#""" #?????????????? | | ######?????????#""" #?????????????? | | ???????????????# #?????????????? | +----------------------------------------------------+ Best States ------------- Heat Dissipation 25 Energy Generation 10 Energy Capacity 250 Matter Stores 300 Matter Capacity 300 Sight Range 16 Terrain Scan Density 10 Evasion (%) 50 Targeting Accuracy 6 Recoil Reduction 2 Item Schematics ----------------- None Robot Schematics ------------------ None Fabricated ------------ Nothing Alien Tech Used ----------------- None Achievements -------------- None Challenges ------------ None Game ------ Seed RemoteAblativeScanner Manual? 0 Play Time 00:14:22 Cumulative 131.0 hours Start 2024.11.24 @ 07:09:14 End 2024.11.24 @ 07:17:07 Sessions 1 Manual Loads 0 Difficulty Rogue Special Mode None Game No. 244 Rogue 244 Adventurer 0 Explorer 0 Win Type - Total 0 Types 0/0/0/0/0/0/0/0/0 Lore% 43 Gallery% 40 Achievement% 36 Wizard Run 0 Options --------- Layout 0 ASCII 0 Keyboard 0 Movement Mouse Keybinds 0 Fullscreen 1 Font 24/Smallcaps Map View 91x25 Zoom Use 89% Tactical HUD 1 Map Filters NONE Filters NONE Steam 1 RUN: 4ffed044-6e4b-4738-a105-dfcebc1bf882